Workbook

Sheet Hoja1 (2) (hidden)
D1: Referenciamiento de Precios
A3: Objeto | F3: Fecha | G3: DD/MM/AAA
A5: Descripción
A6: Descripción del bien o servicio a referenciar
A9: Parte I
A11: Modalidad de Contratación
A12: Señale con una x el tipo de modalidad de contratación ( ver observación 1,3 y 5)
A13: Solicitud Publica de Varias Ofertas | E13: Solicitud Privada de Varias Ofertas
A14: Contratación con una sola oferta | E14: Pedido Directo
A16: Proveedor 1
A17: Nombre | F17: Valor | G17: $
A18: Medio de Consulta ( especifique la información para el medio de consulta utilizado)
A19: Email | C19: Cotización | D19: Otro: (ver observación 2)
A21: Fecha de recepcion de información | C21: DD/MM/AAAA
A23: Proveedor 2
A24: Nombre | F24: Valor | G24: $
A25: Medio de Consulta ( especifique la información para el medio de consulta utilizado)
A26: Email | C26: Cotización | D26: Otro: (ver observación 2)
A28: Fecha de recepcion de información | C28: DD/MM/AAAA
A30: Proveedor 3
A31: Nombre | F31: Valor | G31: $
A32: Medio de Consulta ( especifique la información para el medio de consulta utilizado)
A33: Email | C33: Cotización | D33: Otro: (ver observación 2)
A35: Fecha de recepcion de información | C35: DD/MM/AAAA
A37: Conclusiones
A43: Observaciones
A44: 1. Para los referenciamientos de precios SPVA y SPO (salvo para la selección de aliados proveedores), el medio por el cual debe realizarse es por escrito.
A45: 2. Otro medio podrá constituir, entre otros, consultas en paginas web, verificación de listado de precios regulados e historicos de procesos contractuales que no superen los 6 (seis) meses de antigüedad.
A46: 3. Este formato se aplicará para la compra de bienes y servicios de aliados proveedores siempre y cuando sus precios no se encuentren regulados en la alianza o en el mercado.
A47: 4. Se deberá consultar a minímo dos proveedores salvo, en el caso de bienes y servicios en donde haya regulación de precios o se apliquen los iterales A,G,H y J del articulo 6 del Manual de contratación.
A48: 5. Para la solicitud de pedido directo se diligenciará la parte 2 del presente formato
A49: Parte II
A53: No. Radicado (Req. Externo) | C53: Convenio No. | D53: Adición | F53: Logístico Responsable
A56: Descripción del Requerimiento / Objeto (Incluye cantidades y características técnicas)
A58: Disponibilidad Presupuestal | D58: Valor Disponibilidad
A60: Información del Proveedor | C60: Proveedor 1 | E60: Proveedor 2 | G60: Proveedor 3
A61: Fecha de Solicitud | C61: DD/MM/AAA | E61: DD/MM/AAA | G61: DD/MM/AAA
A62: Fecha proyectada de entrega | C62: DD/MM/AAA | E62: DD/MM/AAA | G62: DD/MM/AAA
A63: Medio de Contacto
A64: Precio Total Cotizado (incluido IVA) | C64: $ | E64: $ | G64: $
A65: Valor aprobado para compra | C65: $ | E65: $ | G65: $
A67: Proveedor Seleccionado | F67: Nit
A68: Proveedor Seleccionado | F68: Nit
A69: Proveedor Seleccionado | F69: Nit
A71: Criterio de Selección
A74: Observaciones
C77: Elaborado por
C78: Firma

Sheet Hoja2
C1: Referenciamiento de Precios
A2: Objeto | B2: Servicio de traslado de estructuras LPR y puesta en operación de las Cámaras LPR 81.1 y LPR 81.2 sector jardín botánico, de la Secretaria de Seguridad del Distrito Especial de Ciencia, Tecnología e Innovación de Medellín. | F2: Fecha | H2: 2023-09-08
A4: Descripción
A5: =+B2 -> Servicio de traslado de estructuras LPR y puesta en operación de las Cámaras LPR 81.1 y LPR 81.2 sector jardín botánico, de la Secretaria de Seguridad del Distrito Especial de Ciencia, Tecnología e Innovación de Medellín.
A9: Modalidad de Contratación
A10: Señale con una x el tipo de modalidad de contratación ( ver observación 1, 3 y 5)
A11: Solicitud Publica de Varias Ofertas | E11: Solicitud Privada de Varias Ofertas
A12: Contratación con una sola oferta | E12: Pedido Directo
A14: Proveedor 1
A15: Nombre EMPRESA | C15: SPECTRA SAS | F15: Valor TOTAL | H15: $ 21,479,885
A16: Medio de Consulta ( especifique la información para el medio de consulta utilizado)
A17: Email | C17: Telefónico | D17: Otro:
C18: Pág. Web
A19: Fecha de recepción de información | C19: 2023-09-08
A21: Proveedor 2
A22: Nombre EMPRESA | C22: UNION ELECTRICA SA | F22: Valor TOTAL | H22: $ 20,344,354
A23: Medio de Consulta ( especifique la información para el medio de consulta utilizado)
A24: Email | C24: Telefónico | D24: Otro:
C25: Pág. Web
A26: Fecha de recepción de información | C26: 2023-09-08
A29: Proveedor 3
A30: Nombre EMPRESA | C30: UNION TEMPORAL COLOMBIA SEGURA | F30: Valor TOTAL | H30: $ 22,958,695
A31: Medio de Consulta ( especifique la información para el medio de consulta utilizado)
A32: Email | C32: Telefónico | D32: Otro:
C33: Pág. Web
A34: Fecha de recepción de información | C34: 2023-09-08
A36: Disponibilidad Presupuestal | C36: 2023000627 | E36: Valor Disponibilidad | G36: $ 20,347,805
A37: Conclusiones
A41: Observaciones
A42: 1. Para los referenciamientos de precios SPVA y SPO (salvo para la selección de aliados proveedores), el medio por el cual debe realizarse es por escrito.
A43: 2. Otro medio podrá constituir, entre otros, consultas en paginas web, verificación de listado de precios regulados e históricos de procesos contractuales que no superen los 6 (seis) meses de antigüedad.
A44: 3. Este formato se aplicará para la compra de bienes y servicios de aliados proveedores siempre y cuando sus precios no se encuentren regulados en la alianza o en el mercado.
A45: 4. Se deberá consultar a mínimo dos proveedores salvo, en el caso de bienes y servicios en donde haya regulación de precios o se apliquen los literales A,G,H y J del articulo 6 del Manual de contratación.
A46: 5. Para la modalidad de pedido directo se debe concluir respecto al proveedor seleccionado teniendo como base la consulta realizada y estableciendo los criterios de selección.
C49: Firma

Sheet Hoja3
A1: DOTACION | B1: VALOR PRESUPUESTADO POR UNIDAD | C1: VALOR PRESUPUESTADO TOTAL | D1: AMANDA PANQUEVA | F1: AMERICAN TACTICAL | H1: DOTACIONES COOPES
D2: VALOR UNITARIO | E2: VALOR TOTAL | F2: VALOR UNITARIO | G2: VALOR TOTAL | H2: VALOR UNITARIO | I2: VALOR TOTAL
A3: 100 Cascos abatibles para motociclista | B3: 300,000 | C3: =+B3*100 -> 30,000,000 | D3: =+E3/100 -> 202,300 | E3: =17000000*1.19 -> 20,230,000 | F3: =+G3/100 -> 470,050 | G3: =39500000*1.19 -> 47,005,000 | H3: =+I3/100 -> 305,830 | I3: =25700000*1.19 -> 30,583,000
A4: 600 Camisetas tipo polo | B4: 85,000 | C4: =+B4*600 -> 51,000,000 | D4: =+E4/600 -> 98,770 | E4: =(83000*1.19)*600 -> 59,262,000 | F4: =+G4/600 -> 63,070 | G4: =(53000*1.19)*600 -> 37,842,000 | H4: =+I4/600 -> 103,530 | I4: =(87000*1.19)*600 -> 62,118,000
A5: 100 Brazaletes Policía de Tránsito | B5: 40,000 | C5: =+B5*100 -> 4,000,000 | D5: =+E5/100 -> 27,370 | E5: =2300000*1.19 -> 2,737,000 | F5: =+G5/100 -> 33,320 | G5: =2800000*1.19 -> 3,332,000 | H5: =+I5/100 -> 38,080 | I5: =3200000*1.19 -> 3,808,000
A6: TOTAL | C6: =SUM(C3:C5) -> 85,000,000 | E6: =SUM(E3:E5) -> 82,229,000 | G6: =SUM(G3:G5) -> 88,179,000 | I6: =SUM(I3:I5) -> 96,509,000
B13: 8060631 | C13: =+B13*7 -> 56424417
C14: =+C13*1.19 -> 67145056.23
B17: 4,000,000
B18: =+B17*0.92 -> 3,680,000 | M18: =15000000/100000 -> 150
B19: =+B18/2 -> 1,840,000
D22: 1200000
D23: 1183200
D24: =+D22-D23 -> 16800

Sheet Hoja1
C5: DESCRIPCIÓN | D5: CANTIDAD | E5: VALOR UNITARIO | F5: VALOR TOTAL
C6: Chalecos color azul marino especifico, con 1 escudo de la OIA bordado, letrero trasero en transfer digital GUARDIA INDÍGENA y dos bastones que van ubicados en forma de V. Bolsillo con cierre y en tela antifluido de la fayette sin forro | D6: 120 | E6: $ 68,000 | F6: =D6*E6 -> $ 8,160,000
C7: Gorra de color azul Marino Especifico confeccionada en tela Dril – Poker. Con 3 logos | D7: 120 | E7: $ 25,000 | F7: $ 3,000,000
C8: Camiseta de color blanco en tela algodón, cuello redondo y puñoscon sesgos de color verde. Logos sulimados en transfer digital full color | D8: 120 | E8: $ 35,000 | F8: $ 4,200,000 | I8: 1. | J8: Caja de Guantes x 100 Uds. | K8: 8 | L8: $ 22,500 | M8: $ 180,000
C9: Machete Peinilla lima Bellota + Funda | D9: 240 | E9: $ 71,000 | F9: $ 17,040,000 | I9: 2. | J9: esparadrapo de tela Rollo de 4″ x 5 | K9: 8 | L9: $ 19,900 | M9: $ 159,200
C10: Camilla flotante en polietileno + Inmovilizador de Cabeza en espuma | D10: 8 | E10: $ 220,999 | F10: $ 1,767,992 | I10: 3. | J10: Solución Yodada Frasco 120 ml. | K10: 8 | L10: $ 11,900 | M10: $ 95,200
C11: Cuello Ortopédico en espuma. | D11: 8 | E11: $ 26,550 | F11: $ 212,400 | I11: 4. | J11: Camilla flotante en polietileno + Inmovilizador deCabeza en espuma | K11: 8 | L11: $ 250,999 | M11: $ 2,007,992
C12: Venda de algodón – 3 x 5 Yardas. | D12: 8 | E12: $ 7,200 | F12: $ 57,600 | I12: 5. | J12: Cuello Ortopédico en espuma. | K12: 8 | L12: $ 29,550 | M12: $ 236,400
C13: Paquete de Bajalenguas x 20. | D13: 8 | E13: $ 4,000 | F13: $ 32,000 | I13: 6. | J13: Venda de algodón – 3 x 5 Yardas. | K13: 8 | L13: $ 7,900 | M13: $ 63,200
C14: Alcohol Antiséptico 345 ml. | D14: 8 | E14: $ 18,000 | F14: $ 144,000 | I14: 7. | J14: Paquete de Bajalenguas x 20. | K14: 8 | L14: $ 4,900 | M14: $ 39,200
C15: Caja de Gasas Limpia por 20 unidades | D15: 8 | E15: $ 6,000 | F15: $ 48,000 | I15: 8. | J15: Alcohol Antiséptico 345 ml. | K15: 8 | L15: $ 18,900 | M15: $ 151,200
C16: Solución Salina 500 cc. | D16: 8 | E16: $ 8,000 | F16: $ 64,000 | I16: 9. | J16: Caja de Gasas Limpia por 20 unidades | K16: 8 | L16: $ 6,900 | M16: $ 55,200
C17: Termómetro de cinta. | D17: 8 | E17: $ 22,007 | F17: $ 176,056 | I17: 10. | J17: Solución Salina 500 cc. | K17: 8 | L17: $ 8,900 | M17: $ 71,200
C18: Venda elástica 2 x 5 yardas. | D18: 8 | E18: $ 2,300 | F18: $ 18,400 | I18: 11. | J18: Termómetro de cinta. | K18: 8 | L18: $ 23,007 | M18: $ 184,056
C19: venda elástica 3 x 5 yardas | D19: 8 | E19: $ 2,800 | F19: $ 22,400 | I19: 12. | J19: Venda elástica 2 x 5 yardas. | K19: 8 | L19: $ 2,000 | M19: $ 16,000
C20: Solución Yodada Frasco 120 ml. | D20: 8 | E20: $ 4,000 | F20: $ 32,000 | I20: 13. | J20: venda elástica 3 x 5 yardas | K20: 8 | L20: $ 2,999 | M20: $ 23,992
C21: Caja de Guantes x 100 Uds. | D21: 8 | E21: $ 22,000 | F21: $ 176,000 | L21: TOTAL
C22: esparadrapo de tela Rollo de 4″ x 5 | D22: 8 | E22: $ 19,000 | F22: $ 152,000 | M22: 61,602,840
C23: Solución Yodada Frasco 120 ml. | D23: 8 | E23: $ 11,200 | F23: $ 89,600
E24: SUB TOTAL | F24: =SUM(F6:F23) -> 35,392,448
E25: IVA | F25: =F24*19% -> 6,724,565
E26: TOTAL | F26: =F24+F25 -> 42,117,013

Sheet Hoja4
D13: DESCRIPCIÓN | E13: CANTIDAD | F13: VALOR UNITARIO | G13: VALOR TOTAL
D14: Chalecos color azul marino especifico, con 1 escudo de la OIA bordado, letrero trasero en transfer digital GUARDIA INDÍGENA y dos bastones que van ubicados en forma de V. Bolsillo con cierre y en tela antifluido de la fayette sin forro | E14: 120 | F14: $ 68,000 | G14: =E14*F14 -> $ 8,160,000
D15: Gorra de color azul Marino Especifico confeccionada en tela Dril – Poker. Con 3 logos | E15: 120 | F15: $ 25,000 | G15: =E15*F15 -> $ 3,000,000
D16: Camiseta de color blanco en tela algodón, cuello redondo y puñoscon sesgos de color verde. Logos sulimados en transfer digital full color | E16: 120 | F16: $ 35,000 | G16: =E16*F16 -> $ 4,200,000
D17: Machete Peinilla lima Bellota + Funda | E17: 240 | F17: $ 71,000 | G17: =E17*F17 -> $ 17,040,000
D18: Caja de Guantes x 100 Uds. | E18: 8 | F18: $ 22,500 | G18: =E18*F18 -> $ 180,000
D19: esparadrapo de tela Rollo de 4″ x 5 | E19: 8 | F19: $ 19,900 | G19: =E19*F19 -> $ 159,200
D20: Solución Yodada Frasco 120 ml. | E20: 8 | F20: $ 11,900 | G20: $ 95,200
D21: Camilla flotante en polietileno + Inmovilizador deCabeza en espuma | E21: 8 | F21: $ 250,999 | G21: $ 2,007,992
D22: Cuello Ortopédico en espuma. | E22: 8 | F22: $ 29,550 | G22: $ 236,400
D23: Venda de algodón – 3 x 5 Yardas. | E23: 8 | F23: $ 7,900 | G23: $ 63,200
D24: Paquete de Bajalenguas x 20. | E24: 8 | F24: $ 4,900 | G24: $ 39,200
D25: Alcohol Antiséptico 345 ml. | E25: 8 | F25: $ 18,900 | G25: $ 151,200
D26: Caja de Gasas Limpia por 20 unidades | E26: 8 | F26: $ 6,900 | G26: $ 55,200
D27: Solución Salina 500 cc. | E27: 8 | F27: $ 8,900 | G27: $ 71,200
D28: Termómetro de cinta. | E28: 8 | F28: $ 23,007 | G28: $ 184,056
D29: Venda elástica 2 x 5 yardas. | E29: 8 | F29: $ 2,000 | G29: $ 16,000
D30: venda elástica 3 x 5 yardas | E30: 8 | F30: $ 2,999 | G30: $ 23,992
G31: =SUM(G14:G30) -> $ 35,682,840
G32: =G31*19% -> $ 6,779,740
G33: =G31+G32 -> $ 42,462,580

Sheet Hoja5
D4: DESCRIPCIÓN | E4: CANTIDAD | F4: VALOR UNITARIO | G4: VALOR TOTAL
D5: Chaleco color azul marino especifico, con 1 escudo de la OIA bordado, letrero trasero en transfer digital GUARDIA INDÍGENA y dos bastones que van ubicados en forma de V. | E5: 120 | F5: $ 68,000 | G5: =E5*F5 -> $ 8,160,000
D6: Gorra de color azul Marino Especifico Confeccionada en tela Dril – Póker. Con 3 logos. | E6: 120 | F6: $ 40,000 | G6: =E6*F6 -> $ 4,800,000
D7: Camiseta de color blanco en tela algodón,cuello redondo y puños con sesgos de color verde. Logos sublimados en transfer digital full Color | E7: 120 | F7: $ 50,000 | G7: $ 6,000,000
D8: Machete Peinilla lima Bellota + Funda | E8: 240 | F8: $ 69,000 | G8: $ 16,560,000
D9: Termómetro de cinta. | E9: 8 | F9: $ 24,000 | G9: $ 192,000
D10: Venda elástica 2 x 5 yardas. | E10: 8 | F10: $ 2,600 | G10: $ 20,800
D11: venda elástica 3 x 5 yardas | E11: 8 | F11: $ 3,000 | G11: $ 24,000
D12: Solución Yodada Frasco 120 ml. | E12: 8 | F12: $ 4,200 | G12: $ 33,600
D13: Caja de Guantes x 100 Uds. | E13: 8 | F13: $ 22,500 | G13: $ 180,000
D14: esparadrapo de tela Rollo de 4″ x 5 | E14: 8 | F14: $ 19,900 | G14: $ 159,200
D15: Solución Yodada Frasco 120 ml. | E15: 8 | F15: $ 11,550 | G15: $ 92,400
D16: Camilla flotante en polietileno + Inmovilizador deCabeza en espuma | E16: 8 | F16: $ 222,999 | G16: $ 1,783,992
D17: Cuello Ortopédico en espuma. | E17: 8 | F17: $ 27,600 | G17: $ 220,800
D18: Venda de algodón – 3 x 5 Yardas. | E18: 8 | F18: $ 7,700 | G18: $ 61,600
D19: Paquete de Bajalenguas x 20. | E19: 8 | F19: $ 4,500 | G19: $ 36,000
D20: Alcohol Antiséptico 345 ml. | E20: 8 | F20: $ 18,000 | G20: $ 144,000
D21: Caja de Gasas Limpia por 20 unidades | E21: 8 | F21: $ 6,100 | G21: $ 48,800
D22: Solución Salina 500 cc. | E22: 8 | F22: $ 8,900 | G22: $ 71,200
G23: =SUM(G5:G22) -> $ 38,588,392
G24: =G23*19% -> $ 7,331,794
G25: =G23+G24 -> $ 45,920,186
